[Event "Late-Titled-Tuesday-Blitz-August-29-2023"]
[Site "Chess.com"]
[Date "2023.08.29"]
[Round "11"]
[White "Sjakkerntobi"]
[Black "AndreiITrifan"]
[Result "0-1"]
[WhiteElo "2480"]
[BlackElo "2596"]
[TimeControl "180+1"]
[EndTime "16:03:09 PDT"]
[Termination "AndreiITrifan won by checkmate"]

1. e4 {[%clk 0:03:00.9]} 1... e5 {[%clk 0:02:58.2]} 2. Nf3 {[%clk 0:03:00.9]}
2... Nc6 {[%clk 0:02:57.9]} 3. Bc4 {[%clk 0:03:00.3]} 3... Bc5 {[%clk
0:02:56.7]} 4. c3 {[%clk 0:02:59.2]} 4... Nf6 {[%clk 0:02:56.9]} 5. d3 {[%clk
0:02:59.1]} 5... d6 {[%clk 0:02:56.3]} 6. O-O {[%clk 0:02:58.7]} 6... a6 {[%clk
0:02:56.4]} 7. a4 {[%clk 0:02:58.8]} 7... Ba7 {[%clk 0:02:55.3]} 8. Re1 {[%clk
0:02:57.9]} 8... h6 {[%clk 0:02:55.4]} 9. Nbd2 {[%clk 0:02:51.5]} 9... g5 {[%clk
0:02:51.9]} 10. d4 {[%clk 0:02:25.7]} 10... Bg4 {[%clk 0:02:47.2]} 11. Qb3
{[%clk 0:02:24]} 11... Na5 {[%clk 0:02:39.8]} 12. Qb4 {[%clk 0:02:08.5]} 12...
c5 {[%clk 0:02:35.5]} 13. Qa3 {[%clk 0:02:04.2]} 13... Bxf3 {[%clk 0:02:32.2]}
14. Nxf3 {[%clk 0:02:03.8]} 14... Nxc4 {[%clk 0:02:31.4]} 15. Qb3 {[%clk
0:02:04.1]} 15... Na5 {[%clk 0:02:26.6]} 16. Qd1 {[%clk 0:02:03.2]} 16... cxd4
{[%clk 0:02:25]} 17. cxd4 {[%clk 0:02:01.5]} 17... Nc6 {[%clk 0:02:24.6]} 18.
Qb3 {[%clk 0:01:53.5]} 18... Rb8 {[%clk 0:02:18.9]} 19. dxe5 {[%clk 0:01:52.4]}
19... Nxe5 {[%clk 0:02:19.8]} 20. Nxe5 {[%clk 0:01:50.3]} 20... dxe5 {[%clk
0:02:20.7]} 21. Rd1 {[%clk 0:01:46.1]} 21... Qb6 {[%clk 0:02:16.3]} 22. Qf3
{[%clk 0:01:46.1]} 22... O-O {[%clk 0:02:12.3]} 23. Be3 {[%clk 0:01:45.3]} 23...
Qc6 {[%clk 0:02:04.6]} 24. Bxa7 {[%clk 0:01:43.6]} 24... Ra8 {[%clk 0:02:04]}
25. Be3 {[%clk 0:01:35]} 25... Kg7 {[%clk 0:02:03.4]} 26. Rac1 {[%clk
0:01:30.9]} 26... Qxe4 {[%clk 0:02:03]} 27. Qxe4 {[%clk 0:01:30.8]} 27... Nxe4
{[%clk 0:02:03.9]} 28. Rd7 {[%clk 0:01:28.1]} 28... Rac8 {[%clk 0:01:59.6]} 29.
Rxc8 {[%clk 0:01:27]} 29... Rxc8 {[%clk 0:01:59]} 30. Rxb7 {[%clk 0:01:27.3]}
30... Rc2 {[%clk 0:01:56.4]} 31. f3 {[%clk 0:01:27]} 31... Nd6 {[%clk
0:01:51.6]} 32. Ra7 {[%clk 0:01:09.8]} 32... Nc4 {[%clk 0:01:49.4]} 33. Bc5
{[%clk 0:00:53.7]} 33... Nxb2 {[%clk 0:01:47.3]} 34. Bd6 {[%clk 0:00:53.9]}
34... Nd3 {[%clk 0:01:44.7]} 35. h4 {[%clk 0:00:46.5]} 35... gxh4 {[%clk
0:01:33.2]} 36. Rxa6 {[%clk 0:00:45.2]} 36... f6 {[%clk 0:01:33.4]} 37. a5
{[%clk 0:00:38.9]} 37... Nf4 {[%clk 0:01:30.9]} 38. Ra7+ {[%clk 0:00:37.3]}
38... Kg6 {[%clk 0:01:30.3]} 39. a6 {[%clk 0:00:35.3]} 39... Rxg2+ {[%clk
0:01:25.7]} 40. Kh1 {[%clk 0:00:35.6]} 40... Ra2 {[%clk 0:01:25]} 41. Bc5 {[%clk
0:00:31.9]} 41... Nh5 {[%clk 0:01:23.1]} 42. Kg1 {[%clk 0:00:20.5]} 42... h3
{[%clk 0:01:21.4]} 43. Bf2 {[%clk 0:00:20.3]} 43... h2+ {[%clk 0:01:20.5]} 44.
Kxh2 {[%clk 0:00:20.7]} 44... Rxf2+ {[%clk 0:01:20]} 45. Kh3 {[%clk 0:00:21.2]}
45... Rxf3+ {[%clk 0:01:18.4]} 46. Kg2 {[%clk 0:00:21.7]} 46... Ra3 {[%clk
0:01:17.4]} 47. Ra8 {[%clk 0:00:21.7]} 47... Nf4+ {[%clk 0:01:18.3]} 48. Kf2
{[%clk 0:00:20.8]} 48... Kf5 {[%clk 0:01:18.5]} 49. a7 {[%clk 0:00:21.1]} 49...
h5 {[%clk 0:01:18.5]} 50. Kg1 {[%clk 0:00:20.5]} 50... h4 {[%clk 0:01:18.3]} 51.
Kh2 {[%clk 0:00:21.2]} 51... h3 {[%clk 0:01:17.9]} 52. Kh1 {[%clk 0:00:20.8]}
52... Ke4 {[%clk 0:01:16]} 53. Kh2 {[%clk 0:00:20.6]} 53... Kf3 {[%clk
0:01:15.6]} 54. Kh1 {[%clk 0:00:20.5]} 54... Ra2 {[%clk 0:01:14.3]} 55. Kg1
{[%clk 0:00:15.2]} 55... h2+ {[%clk 0:01:11.3]} 56. Kh1 {[%clk 0:00:15.4]} 56...
Nh5 {[%clk 0:01:11.5]} 57. Rg8 {[%clk 0:00:11.5]} 57... Rxa7 {[%clk 0:01:10.3]}
58. Kxh2 {[%clk 0:00:08.4]} 58... Ra2+ {[%clk 0:01:10.5]} 59. Kh3 {[%clk
0:00:08.7]} 59... Nf4+ {[%clk 0:01:10.7]} 60. Kh4 {[%clk 0:00:07.4]} 60... Rh2#
{[%clk 0:01:11.6]} 0-1

[Event "Late-Titled-Tuesday-Blitz-August-29-2023"]
[Site "Chess.com"]
[Date "2023.08.29"]
[Round "11"]
[White "JoakimVonAnd"]
[Black "Ncatt"]
[Result "1-0"]
[WhiteElo "2736"]
[BlackElo "2474"]
[TimeControl "180+1"]
[EndTime "16:03:10 PDT"]
[Termination "JoakimVonAnd won by resignation"]

1. Nf3 {[%clk 0:03:00.9]} 1... d5 {[%clk 0:02:58.6]} 2. g3 {[%clk 0:03:01.3]}
2... c6 {[%clk 0:02:58.6]} 3. Bg2 {[%clk 0:03:01.4]} 3... Bg4 {[%clk 0:02:59.1]}
4. O-O {[%clk 0:03:00.2]} 4... Nd7 {[%clk 0:02:58.9]} 5. h3 {[%clk 0:03:00.7]}
5... Bh5 {[%clk 0:02:58.4]} 6. c4 {[%clk 0:02:58.5]} 6... e6 {[%clk 0:02:58.4]}
7. d4 {[%clk 0:02:56.5]} 7... Bd6 {[%clk 0:02:57.4]} 8. Qb3 {[%clk 0:02:46.1]}
8... Qb6 {[%clk 0:02:52.8]} 9. Nc3 {[%clk 0:02:44.2]} 9... Qxb3 {[%clk
0:02:38.6]} 10. axb3 {[%clk 0:02:45.1]} 10... a6 {[%clk 0:02:32.4]} 11. c5
{[%clk 0:02:30.9]} 11... Bc7 {[%clk 0:02:31.2]} 12. b4 {[%clk 0:02:31]} 12...
Rd8 {[%clk 0:02:25.3]} 13. Bf4 {[%clk 0:02:30.8]} 13... Bxf4 {[%clk 0:02:23.2]}
14. gxf4 {[%clk 0:02:31.7]} 14... Ne7 {[%clk 0:02:22.9]} 15. Nd2 {[%clk
0:02:31.8]} 15... O-O {[%clk 0:01:59.9]} 16. Nb3 {[%clk 0:02:30.8]} 16... f6
{[%clk 0:01:57.2]} 17. Na5 {[%clk 0:02:30.3]} 17... Rb8 {[%clk 0:01:57.4]} 18.
Rfe1 {[%clk 0:02:14.1]} 18... e5 {[%clk 0:01:52.3]} 19. dxe5 {[%clk 0:02:06.6]}
19... fxe5 {[%clk 0:01:53.2]} 20. e4 {[%clk 0:02:06.8]} 20... dxe4 {[%clk
0:01:23.4]} 21. fxe5 {[%clk 0:02:02]} 21... Nxe5 {[%clk 0:01:13]} 22. Rxe4
{[%clk 0:02:01.8]} 22... N7g6 {[%clk 0:01:10.3]} 23. Re3 {[%clk 0:01:39.8]}
23... Rf4 {[%clk 0:01:04.3]} 24. Rae1 {[%clk 0:01:28]} 24... Nf3+ {[%clk
0:00:52.9]} 25. Bxf3 {[%clk 0:01:28.4]} 25... Bxf3 {[%clk 0:00:51.9]} 26. Re8+
{[%clk 0:01:29]} 26... Rf8 {[%clk 0:00:48.1]} 27. Rxf8+ {[%clk 0:01:28.5]} 27...
Kxf8 {[%clk 0:00:45.8]} 28. Re3 {[%clk 0:01:29.2]} 28... Bh5 {[%clk 0:00:40.4]}
29. Ne4 {[%clk 0:01:29.8]} 29... Nf4 {[%clk 0:00:29.7]} 30. Nd6 {[%clk
0:01:29.9]} 30... Nd5 {[%clk 0:00:29.5]} 31. Rb3 {[%clk 0:01:28.6]} 31... Bd1
{[%clk 0:00:27.7]} 32. Rd3 {[%clk 0:01:28.8]} 32... Be2 {[%clk 0:00:25.4]} 33.
Rd2 {[%clk 0:01:29.2]} 33... Bb5 {[%clk 0:00:24.6]} 34. Rd4 {[%clk 0:01:21]}
34... b6 {[%clk 0:00:21.9]} 35. cxb6 {[%clk 0:01:21.5]} 35... Nxb6 {[%clk
0:00:18.8]} 36. Rf4+ {[%clk 0:01:14.7]} 36... Kg8 {[%clk 0:00:16.8]} 37. Re4
{[%clk 0:01:08.1]} 37... Nd5 {[%clk 0:00:15.6]} 38. Rd4 {[%clk 0:01:01.9]} 38...
Nb6 {[%clk 0:00:15.4]} 39. Nxb5 {[%clk 0:00:58]} 39... cxb5 {[%clk 0:00:15.5]}
40. Rd6 {[%clk 0:00:58.7]} 40... Nc4 {[%clk 0:00:14.8]} 41. Rxa6 {[%clk
0:00:58.3]} 41... Nxb2 {[%clk 0:00:14.2]} 42. Nc6 {[%clk 0:00:58.8]} 42... Re8
{[%clk 0:00:13.2]} 43. Rb6 {[%clk 0:00:57.9]} 43... Re6 {[%clk 0:00:11.8]} 44.
Rb8+ {[%clk 0:00:56.4]} 44... Kf7 {[%clk 0:00:12]} 45. Nd8+ {[%clk 0:00:56.8]}
45... Ke7 {[%clk 0:00:12.9]} 46. Nxe6 {[%clk 0:00:57.5]} 46... Kxe6 {[%clk
0:00:13.8]} 47. Rxb5 {[%clk 0:00:57.9]} 47... Nd3 {[%clk 0:00:14.3]} 48. Rb7
{[%clk 0:00:58.1]} 48... Kf6 {[%clk 0:00:14]} 49. b5 {[%clk 0:00:58.2]} 49...
Ne5 {[%clk 0:00:14.9]} 50. b6 {[%clk 0:00:58.4]} 50... Nf3+ {[%clk 0:00:15.8]}
51. Kh1 {[%clk 0:00:57.8]} 51... Ng5 {[%clk 0:00:15.4]} 52. Ra7 {[%clk
0:00:57.5]} 52... Nxh3 {[%clk 0:00:15.4]} 53. b7 {[%clk 0:00:57.7]} 53... Nxf2+
{[%clk 0:00:16.3]} 54. Kg2 {[%clk 0:00:58.2]} 1-0

[Event "Late-Titled-Tuesday-Blitz-August-29-2023"]
[Site "Chess.com"]
[Date "2023.08.29"]
[Round "11"]
[White "valemava"]
[Black "Quattroporte300"]
[Result "0-1"]
[WhiteElo "2299"]
[BlackElo "2405"]
[TimeControl "180+1"]
[EndTime "16:03:10 PDT"]
[Termination "Quattroporte300 won by resignation"]

1. Nf3 {[%clk 0:03:00.9]} 1... d5 {[%clk 0:02:56.6]} 2. c4 {[%clk 0:03:00.8]}
2... e6 {[%clk 0:02:54.5]} 3. b3 {[%clk 0:03:00.2]} 3... Nf6 {[%clk 0:02:54.8]}
4. Bb2 {[%clk 0:03:00.4]} 4... Be7 {[%clk 0:02:55.4]} 5. g3 {[%clk 0:03:00.7]}
5... O-O {[%clk 0:02:56]} 6. Bg2 {[%clk 0:03:01]} 6... c6 {[%clk 0:02:56.6]} 7.
O-O {[%clk 0:03:00.3]} 7... Nbd7 {[%clk 0:02:57.2]} 8. d3 {[%clk 0:03:00.4]}
8... b6 {[%clk 0:02:57.7]} 9. a3 {[%clk 0:03:00.7]} 9... Bb7 {[%clk 0:02:58.1]}
10. b4 {[%clk 0:03:01]} 10... Bd6 {[%clk 0:02:56.3]} 11. Nc3 {[%clk 0:03:00.6]}
11... e5 {[%clk 0:02:55.9]} 12. e4 {[%clk 0:03:00.9]} 12... d4 {[%clk
0:02:54.5]} 13. Ne2 {[%clk 0:03:00.5]} 13... c5 {[%clk 0:02:54.8]} 14. b5 {[%clk
0:02:56.7]} 14... a6 {[%clk 0:02:54.7]} 15. a4 {[%clk 0:02:56.7]} 15... axb5
{[%clk 0:02:55.2]} 16. axb5 {[%clk 0:02:57.6]} 16... Rxa1 {[%clk 0:02:53]} 17.
Qxa1 {[%clk 0:02:58.4]} 17... Qa8 {[%clk 0:02:52.8]} 18. Qxa8 {[%clk 0:02:51.9]}
18... Rxa8 {[%clk 0:02:53.7]} 19. Ra1 {[%clk 0:02:51.2]} 19... Rxa1+ {[%clk
0:02:47.6]} 20. Bxa1 {[%clk 0:02:52.1]} 20... g6 {[%clk 0:02:39.6]} 21. h4
{[%clk 0:02:47.8]} 21... Ne8 {[%clk 0:02:33.8]} 22. Bb2 {[%clk 0:02:46.8]} 22...
f5 {[%clk 0:02:34.2]} 23. Nd2 {[%clk 0:02:42.5]} 23... Kf7 {[%clk 0:02:31.7]}
24. Bc1 {[%clk 0:02:28.3]} 24... f4 {[%clk 0:02:25.6]} 25. Nf3 {[%clk
0:02:23.8]} 25... h6 {[%clk 0:02:17]} 26. Bh3 {[%clk 0:02:23.8]} 26... Nef6
{[%clk 0:02:11.1]} 27. Bd2 {[%clk 0:02:09.4]} 27... fxg3 {[%clk 0:02:08.4]} 28.
fxg3 {[%clk 0:02:09.1]} 28... Kg7 {[%clk 0:02:06]} 29. g4 {[%clk 0:02:07.9]}
29... Nf8 {[%clk 0:02:03.7]} 30. Kf2 {[%clk 0:02:07.5]} 30... Bc8 {[%clk
0:02:01.6]} 31. Kg3 {[%clk 0:02:07.2]} 31... Be6 {[%clk 0:01:56.1]} 32. Bxh6+
{[%clk 0:01:43.6]} 32... Kxh6 {[%clk 0:01:52]} 33. g5+ {[%clk 0:01:43.8]} 33...
Kg7 {[%clk 0:01:52.1]} 34. gxf6+ {[%clk 0:01:43]} 34... Kxf6 {[%clk 0:01:52.6]}
35. Bxe6 {[%clk 0:01:42.3]} 35... Nxe6 {[%clk 0:01:51.7]} 36. Kg4 {[%clk
0:01:41.6]} 36... Ng7 {[%clk 0:01:43.3]} 37. Ng3 {[%clk 0:01:40.2]} 37... Bc7
{[%clk 0:01:39.3]} 38. h5 {[%clk 0:01:39.7]} 38... gxh5+ {[%clk 0:01:35.4]} 39.
Nxh5+ {[%clk 0:01:40.6]} 39... Nxh5 {[%clk 0:01:34.4]} 40. Kxh5 {[%clk
0:01:41.5]} 40... Bd8 {[%clk 0:01:29.7]} 41. Kh6 {[%clk 0:01:31.6]} 41... Be7
{[%clk 0:01:28]} 42. Nh4 {[%clk 0:01:30.1]} 42... Bf8+ {[%clk 0:01:16.5]} 43.
Kh5 {[%clk 0:01:29.1]} 43... Bd6 {[%clk 0:01:13.6]} 44. Nf5 {[%clk 0:01:29]}
44... Bf8 {[%clk 0:01:14.3]} 45. Ng3 {[%clk 0:01:21.3]} 45... Be7 {[%clk
0:01:11.8]} 46. Kg4 {[%clk 0:01:20]} 46... Bf8 {[%clk 0:01:11.2]} 47. Kh5 {[%clk
0:01:17.2]} 47... Ke6 {[%clk 0:01:10.6]} 48. Nf5 {[%clk 0:01:15.5]} 48... Kf6
{[%clk 0:01:09]} 49. Nh4 {[%clk 0:01:14.8]} 49... Be7 {[%clk 0:01:08.7]} 50. Ng6
{[%clk 0:01:10.6]} 50... Bd8 {[%clk 0:01:07.8]} 51. Kh6 {[%clk 0:01:10.6]} 51...
Ke6 {[%clk 0:01:05.5]} 52. Kg7 {[%clk 0:01:08]} 52... Bg5 {[%clk 0:01:02]} 53.
Nf8+ {[%clk 0:01:04.9]} 53... Ke7 {[%clk 0:01:00.1]} 54. Ng6+ {[%clk 0:00:55.1]}
54... Ke6 {[%clk 0:01:00.2]} 55. Nh8 {[%clk 0:00:55.1]} 55... Bf6+ {[%clk
0:00:55.4]} 56. Kh7 {[%clk 0:00:54.9]} 56... Bxh8 {[%clk 0:00:51.9]} 57. Kxh8
{[%clk 0:00:55.8]} 57... Kf6 {[%clk 0:00:52.3]} 58. Kh7 {[%clk 0:00:55.8]} 58...
Kg5 {[%clk 0:00:51.5]} 59. Kg7 {[%clk 0:00:55.8]} 59... Kf4 {[%clk 0:00:52.1]}
60. Kf6 {[%clk 0:00:55.7]} 60... Ke3 {[%clk 0:00:52.7]} 61. Kxe5 {[%clk
0:00:55.8]} 61... Kxd3 {[%clk 0:00:53.4]} 62. Kd5 {[%clk 0:00:56.1]} 62... Kc3
{[%clk 0:00:53]} 63. e5 {[%clk 0:00:56.7]} 63... d3 {[%clk 0:00:53.6]} 64. e6
{[%clk 0:00:57.2]} 64... d2 {[%clk 0:00:54.2]} 65. e7 {[%clk 0:00:57.5]} 65...
d1=Q+ {[%clk 0:00:54.6]} 66. Kc6 {[%clk 0:00:57.9]} 66... Qe2 {[%clk 0:00:51.9]}
67. Kd7 {[%clk 0:00:57.4]} 67... Kxc4 {[%clk 0:00:51.7]} 68. e8=Q {[%clk
0:00:57.1]} 68... Qxe8+ {[%clk 0:00:51.9]} 69. Kxe8 {[%clk 0:00:58]} 69... Kxb5
{[%clk 0:00:52.3]} 70. Kd7 {[%clk 0:00:58.6]} 70... c4 {[%clk 0:00:52.7]} 71.
Kd6 {[%clk 0:00:59.5]} 71... c3 {[%clk 0:00:53.1]} 72. Kd5 {[%clk 0:01:00.4]}
72... c2 {[%clk 0:00:53.6]} 73. Kd4 {[%clk 0:01:01.2]} 73... c1=Q {[%clk
0:00:54]} 74. Kd5 {[%clk 0:01:01.5]} 74... Qd1+ {[%clk 0:00:53.9]} 75. Ke6
{[%clk 0:01:01.8]} 75... Kc6 {[%clk 0:00:53.7]} 76. Kf5 {[%clk 0:01:01.2]} 76...
Qe2 {[%clk 0:00:53]} 0-1

[Event "Late-Titled-Tuesday-Blitz-August-29-2023"]
[Site "Chess.com"]
[Date "2023.08.29"]
[Round "11"]
[White "karinachess1"]
[Black "The_Straightforward_Rook"]
[Result "1-0"]
[WhiteElo "2608"]
[BlackElo "2507"]
[TimeControl "180+1"]
[EndTime "16:03:12 PDT"]
[Termination "karinachess1 won by resignation"]

1. c4 {[%clk 0:03:00.9]} 1... e5 {[%clk 0:02:59.4]} 2. Nc3 {[%clk 0:03:00.8]}
2... Nf6 {[%clk 0:02:59]} 3. Nf3 {[%clk 0:03:01.3]} 3... e4 {[%clk 0:02:59.4]}
4. Ng5 {[%clk 0:02:58.4]} 4... c6 {[%clk 0:03:00.1]} 5. Ngxe4 {[%clk 0:02:48.6]}
5... Nxe4 {[%clk 0:03:01]} 6. Nxe4 {[%clk 0:02:49.4]} 6... d5 {[%clk 0:03:00.3]}
7. cxd5 {[%clk 0:02:36.3]} 7... cxd5 {[%clk 0:03:01.2]} 8. Ng3 {[%clk
0:02:36.6]} 8... h5 {[%clk 0:03:00.4]} 9. e3 {[%clk 0:02:24.3]} 9... h4 {[%clk
0:03:00.3]} 10. Bb5+ {[%clk 0:02:23.6]} 10... Nc6 {[%clk 0:02:55.8]} 11. Ne2
{[%clk 0:02:23.6]} 11... h3 {[%clk 0:02:53.3]} 12. g3 {[%clk 0:02:17.7]} 12...
Bd6 {[%clk 0:02:48]} 13. Nd4 {[%clk 0:02:08.8]} 13... Bd7 {[%clk 0:02:46]} 14.
Qa4 {[%clk 0:01:53.3]} 14... O-O {[%clk 0:02:10.5]} 15. Nxc6 {[%clk 0:01:36.1]}
15... bxc6 {[%clk 0:02:11.4]} 16. Be2 {[%clk 0:01:36.2]} 16... c5 {[%clk
0:02:01.6]} 17. Qc2 {[%clk 0:01:34.6]} 17... d4 {[%clk 0:01:53.1]} 18. O-O
{[%clk 0:01:27]} 18... Rc8 {[%clk 0:01:31.7]} 19. d3 {[%clk 0:01:22.5]} 19...
Bc6 {[%clk 0:01:16.5]} 20. e4 {[%clk 0:01:22.6]} 20... f5 {[%clk 0:01:16.3]} 21.
f4 {[%clk 0:01:13.2]} 21... c4 {[%clk 0:01:15.1]} 22. e5 {[%clk 0:01:09.7]}
22... cxd3 {[%clk 0:00:47.7]} 23. Bxd3 {[%clk 0:01:00.8]} 23... Bg2 {[%clk
0:00:40.2]} 24. Qb3+ {[%clk 0:01:00.7]} 24... Kh8 {[%clk 0:00:39.3]} 25. exd6
{[%clk 0:01:00.5]} 25... Bxf1 {[%clk 0:00:34.4]} 26. Bxf1 {[%clk 0:01:01.4]}
26... Qxd6 {[%clk 0:00:31.1]} 27. Qd3 {[%clk 0:00:52.8]} 27... Rfe8 {[%clk
0:00:19.9]} 28. Bd2 {[%clk 0:00:50.5]} 28... Qc6 {[%clk 0:00:20.3]} 29. Bxh3
{[%clk 0:00:35.1]} 29... Qc2 {[%clk 0:00:20.4]} 30. Bxf5 {[%clk 0:00:33.1]}
30... Qxb2 {[%clk 0:00:17.6]} 31. Rb1 {[%clk 0:00:27.8]} 31... Qxa2 {[%clk
0:00:17]} 32. Bg6 {[%clk 0:00:18.7]} 32... Re2 {[%clk 0:00:13.9]} 33. Qxe2
{[%clk 0:00:17.8]} 33... d3 {[%clk 0:00:14.3]} 34. Qh5+ {[%clk 0:00:17.1]} 34...
Kg8 {[%clk 0:00:14.1]} 35. Qh7+ {[%clk 0:00:17.4]} 35... Kf8 {[%clk 0:00:14.7]}
36. Qh8+ {[%clk 0:00:17.6]} 36... Ke7 {[%clk 0:00:15.5]} 37. Qxg7+ {[%clk
0:00:17.8]} 37... Ke6 {[%clk 0:00:14.5]} 38. Qf7+ {[%clk 0:00:16.6]} 38... Kd6
{[%clk 0:00:14.3]} 39. Bb4+ {[%clk 0:00:16.7]} 39... Kc6 {[%clk 0:00:13.6]} 40.
Qxa2 {[%clk 0:00:16.7]} 1-0

[Event "Late-Titled-Tuesday-Blitz-August-29-2023"]
[Site "Chess.com"]
[Date "2023.08.29"]
[Round "11"]
[White "PawnEatingZombie"]
[Black "ToddBryant"]
[Result "0-1"]
[WhiteElo "2089"]
[BlackElo "2318"]
[TimeControl "180+1"]
[EndTime "16:03:12 PDT"]
[Termination "ToddBryant won by resignation"]

1. e4 {[%clk 0:03:00.9]} 1... c5 {[%clk 0:02:55.8]} 2. Nc3 {[%clk 0:03:00.9]}
2... d6 {[%clk 0:02:56]} 3. f4 {[%clk 0:02:59.7]} 3... g6 {[%clk 0:02:55.9]} 4.
Nf3 {[%clk 0:02:59.5]} 4... Bg7 {[%clk 0:02:55.4]} 5. Bb5+ {[%clk 0:03:00.1]}
5... Bd7 {[%clk 0:02:55.4]} 6. a4 {[%clk 0:03:00.2]} 6... Nc6 {[%clk 0:02:52.5]}
7. d3 {[%clk 0:02:58.6]} 7... e6 {[%clk 0:02:49.7]} 8. e5 {[%clk 0:02:55.6]}
8... d5 {[%clk 0:02:45.7]} 9. O-O {[%clk 0:02:35.9]} 9... Nge7 {[%clk
0:02:40.9]} 10. Ne2 {[%clk 0:01:57.2]} 10... a6 {[%clk 0:02:31]} 11. Bxc6 {[%clk
0:01:57.4]} 11... Bxc6 {[%clk 0:02:31.9]} 12. a5 {[%clk 0:01:56.6]} 12... O-O
{[%clk 0:02:25.7]} 13. c3 {[%clk 0:01:56.7]} 13... f6 {[%clk 0:02:25.2]} 14. d4
{[%clk 0:01:53.7]} 14... cxd4 {[%clk 0:02:19.6]} 15. Nexd4 {[%clk 0:01:47.2]}
15... Qc8 {[%clk 0:02:16.2]} 16. exf6 {[%clk 0:01:43.1]} 16... Bxf6 {[%clk
0:02:17.1]} 17. Re1 {[%clk 0:01:40]} 17... Bd7 {[%clk 0:02:11.2]} 18. Qe2 {[%clk
0:01:39.8]} 18... Re8 {[%clk 0:02:02.2]} 19. Ng5 {[%clk 0:01:27]} 19... Nf5
{[%clk 0:01:45.7]} 20. Nxf5 {[%clk 0:01:14]} 20... exf5 {[%clk 0:01:46.6]} 21.
Qd1 {[%clk 0:01:03]} 21... Qc5+ {[%clk 0:01:41.7]} 22. Kh1 {[%clk 0:01:00.1]}
22... Rxe1+ {[%clk 0:01:09.8]} 23. Qxe1 {[%clk 0:00:59.3]} 23... Re8 {[%clk
0:01:09.5]} 24. Qd1 {[%clk 0:00:46.8]} 24... Bc6 {[%clk 0:00:32.8]} 25. Nf3
{[%clk 0:00:46.4]} 25... Re4 {[%clk 0:00:18.8]} 26. Bd2 {[%clk 0:00:45.1]} 26...
d4 {[%clk 0:00:19.1]} 27. Qg1 {[%clk 0:00:38.7]} 27... Re2 {[%clk 0:00:16.6]}
28. Re1 {[%clk 0:00:37]} 28... Qe7 {[%clk 0:00:15.3]} 29. Rxe2 {[%clk
0:00:30.4]} 29... Qxe2 {[%clk 0:00:16.2]} 30. Qe1 {[%clk 0:00:30.2]} 30... Bxf3
{[%clk 0:00:15.5]} 31. gxf3 {[%clk 0:00:28.4]} 31... Qxf3+ {[%clk 0:00:16.4]}
32. Kg1 {[%clk 0:00:28.5]} 32... Qe4 {[%clk 0:00:16.6]} 33. Qxe4 {[%clk
0:00:21.4]} 33... fxe4 {[%clk 0:00:17.5]} 34. cxd4 {[%clk 0:00:21.6]} 34...
Bxd4+ {[%clk 0:00:18.4]} 35. Kg2 {[%clk 0:00:21.8]} 35... Bxb2 {[%clk
0:00:14.7]} 36. Be3 {[%clk 0:00:19.5]} 36... Bc3 {[%clk 0:00:13.9]} 37. Bb6
{[%clk 0:00:18.8]} 37... Kf7 {[%clk 0:00:14]} 38. Kf2 {[%clk 0:00:19.4]} 38...
Ke6 {[%clk 0:00:14.2]} 39. Ke3 {[%clk 0:00:20.1]} 39... Kf5 {[%clk 0:00:14]} 40.
h3 {[%clk 0:00:20.2]} 40... Bb2 {[%clk 0:00:12.8]} 41. Bc7 {[%clk 0:00:14.3]}
41... Bc1+ {[%clk 0:00:12.3]} 42. Ke2 {[%clk 0:00:14.7]} 42... Bxf4 {[%clk
0:00:13.2]} 0-1

[Event "Late-Titled-Tuesday-Blitz-August-29-2023"]
[Site "Chess.com"]
[Date "2023.08.29"]
[Round "11"]
[White "lefonghua"]
[Black "Goffredo_Fofi"]
[Result "1-0"]
[WhiteElo "2672"]
[BlackElo "2554"]
[TimeControl "180+1"]
[EndTime "16:03:17 PDT"]
[Termination "lefonghua won on time"]

1. d4 {[%clk 0:03:00.9]} 1... g6 {[%clk 0:03:00.4]} 2. c4 {[%clk 0:03:00.9]}
2... Bg7 {[%clk 0:03:01.1]} 3. e4 {[%clk 0:03:01.6]} 3... d6 {[%clk 0:03:01.6]}
4. f4 {[%clk 0:03:01.9]} 4... c5 {[%clk 0:02:54.4]} 5. d5 {[%clk 0:03:02]} 5...
e6 {[%clk 0:02:54.8]} 6. Nf3 {[%clk 0:03:00.7]} 6... exd5 {[%clk 0:02:54.1]} 7.
cxd5 {[%clk 0:03:01.6]} 7... a6 {[%clk 0:02:47.4]} 8. Nc3 {[%clk 0:02:51.7]}
8... Nf6 {[%clk 0:02:46.1]} 9. e5 {[%clk 0:02:44]} 9... dxe5 {[%clk 0:02:37.9]}
10. fxe5 {[%clk 0:02:44.9]} 10... Ng4 {[%clk 0:02:38]} 11. Bg5 {[%clk
0:02:43.8]} 11... Qb6 {[%clk 0:02:35.1]} 12. Qd2 {[%clk 0:02:19.1]} 12... O-O
{[%clk 0:02:27.8]} 13. O-O-O {[%clk 0:02:12.9]} 13... Nxe5 {[%clk 0:02:01.5]}
14. Nxe5 {[%clk 0:02:12.7]} 14... Bxe5 {[%clk 0:02:02.4]} 15. Be7 {[%clk
0:01:57]} 15... Re8 {[%clk 0:01:53.2]} 16. d6 {[%clk 0:01:57.6]} 16... Be6
{[%clk 0:01:45.7]} 17. Re1 {[%clk 0:01:48.9]} 17... Bg7 {[%clk 0:01:39.4]} 18.
Rxe6 {[%clk 0:01:44]} 18... fxe6 {[%clk 0:01:39]} 19. Bc4 {[%clk 0:01:35.4]}
19... Nc6 {[%clk 0:01:38.3]} 20. Bxe6+ {[%clk 0:01:27.1]} 20... Kh8 {[%clk
0:01:37.6]} 21. Nd5 {[%clk 0:01:18]} 21... Qa5 {[%clk 0:00:34.8]} 22. Qxa5
{[%clk 0:01:15.9]} 22... Nxa5 {[%clk 0:00:35.7]} 23. Nc7 {[%clk 0:01:07.8]}
23... Nc6 {[%clk 0:00:35.7]} 24. Nxe8 {[%clk 0:01:00.8]} 24... Rxe8 {[%clk
0:00:34.6]} 25. Bf7 {[%clk 0:00:50.9]} 25... Rxe7 {[%clk 0:00:22.8]} 26. dxe7
{[%clk 0:00:51.1]} 26... Nxe7 {[%clk 0:00:23.7]} 27. Rd1 {[%clk 0:00:49.9]}
27... Bd4 {[%clk 0:00:20.7]} 28. Re1 {[%clk 0:00:44.7]} 28... Bf6 {[%clk
0:00:16.7]} 29. Bb3 {[%clk 0:00:35]} 29... Kg7 {[%clk 0:00:15.3]} 30. Re6 {[%clk
0:00:33.8]} 30... Nc6 {[%clk 0:00:13.7]} 31. Rd6 {[%clk 0:00:32.8]} 31... Ne5
{[%clk 0:00:09.2]} 32. Bd5 {[%clk 0:00:27.3]} 32... b5 {[%clk 0:00:03.6]} 33.
Rxa6 {[%clk 0:00:26.1]} 33... Nd3+ {[%clk 0:00:03.7]} 34. Kc2 {[%clk 0:00:26.6]}
34... Nxb2 {[%clk 0:00:03.9]} 35. Rxf6 {[%clk 0:00:21.2]} 35... Kxf6 {[%clk
0:00:02.5]} 36. Kxb2 {[%clk 0:00:21.4]} 36... Ke5 {[%clk 0:00:02.7]} 37. Bc6
{[%clk 0:00:21.9]} 37... b4 {[%clk 0:00:02]} 38. Kb3 {[%clk 0:00:22.3]} 38...
Kd4 {[%clk 0:00:02.4]} 39. Bb5 {[%clk 0:00:20.7]} 39... g5 {[%clk 0:00:02.2]}
40. g4 {[%clk 0:00:18.1]} 1-0